[Event "*** Titled Tuesday Blitz"]
[Site "Chess.com"]
[Date "2020.05.26"]
[Round "7"]
[White "AradNazari"]
[Black "BabyFacedAssasin"]
[Result "0-1"]
[WhiteElo "2424"]
[BlackElo "2254"]
[TimeControl "180+1"]
[EndTime "11:21:42 PDT"]
[Termination "BabyFacedAssasin won by resignation"]

1. e4 {[%clk 0:02:23.4]} 1... e6 {[%clk 0:02:58.3]} 2. d4 {[%clk 0:02:22.8]}
2... d5 {[%clk 0:02:58.8]} 3. Nd2 {[%clk 0:02:19.7]} 3... c5 {[%clk 0:02:57.5]}
4. Ngf3 {[%clk 0:02:19.1]} 4... cxd4 {[%clk 0:02:57]} 5. Nxd4 {[%clk 0:02:20]}
5... Nc6 {[%clk 0:02:57.3]} 6. Nxc6 {[%clk 0:02:18.5]} 6... bxc6 {[%clk
0:02:58.2]} 7. Bd3 {[%clk 0:02:19.3]} 7... Bd6 {[%clk 0:02:51.9]} 8. O-O {[%clk
0:02:19.1]} 8... Ne7 {[%clk 0:02:43.9]} 9. c4 {[%clk 0:02:16.7]} 9... O-O {[%clk
0:02:40]} 10. Kh1 {[%clk 0:02:16]} 10... Ng6 {[%clk 0:02:26.9]} 11. exd5 {[%clk
0:02:10.9]} 11... exd5 {[%clk 0:02:25.2]} 12. cxd5 {[%clk 0:02:11.2]} 12... Nf4
{[%clk 0:02:13.7]} 13. Ne4 {[%clk 0:02:02.1]} 13... cxd5 {[%clk 0:01:54.1]} 14.
Nxd6 {[%clk 0:01:58.2]} 14... Qxd6 {[%clk 0:01:54.1]} 15. Bb1 {[%clk 0:01:43.7]}
15... Bb7 {[%clk 0:01:48.4]} 16. Qf3 {[%clk 0:01:40]} 16... Ne6 {[%clk
0:01:43.6]} 17. Qh3 {[%clk 0:01:32.8]} 17... g6 {[%clk 0:01:39.8]} 18. Bh6
{[%clk 0:01:21.3]} 18... Rfd8 {[%clk 0:01:36.4]} 19. Bd3 {[%clk 0:01:21.6]}
19... d4 {[%clk 0:01:29.1]} 20. Rfe1 {[%clk 0:01:17.7]} 20... Nf4 {[%clk
0:01:27]} 21. Bxf4 {[%clk 0:01:15.3]} 21... Qxf4 {[%clk 0:01:27.9]} 22. Qg3
{[%clk 0:01:11.9]} 22... Qxg3 {[%clk 0:01:24.4]} 23. hxg3 {[%clk 0:01:12.8]}
23... Kf8 {[%clk 0:01:17.6]} 24. Kg1 {[%clk 0:01:11.1]} 24... Rac8 {[%clk
0:01:15.3]} 25. Rac1 {[%clk 0:01:10.5]} 25... Rxc1 {[%clk 0:01:06.5]} 26. Rxc1
{[%clk 0:01:11.4]} 26... Rc8 {[%clk 0:01:06.4]} 27. Rxc8+ {[%clk 0:01:08.7]}
27... Bxc8 {[%clk 0:01:07.3]} 28. f3 {[%clk 0:01:05.1]} 28... Ke7 {[%clk
0:01:06.6]} 29. Kf2 {[%clk 0:01:04.5]} 29... Kd6 {[%clk 0:01:06.3]} 30. Ke2
{[%clk 0:01:03.9]} 30... a5 {[%clk 0:01:04.6]} 31. Bc4 {[%clk 0:01:01.7]} 31...
f6 {[%clk 0:01:00.9]} 32. Kd3 {[%clk 0:00:56.5]} 32... Kc5 {[%clk 0:00:59.1]}
33. Bg8 {[%clk 0:00:53.1]} 33... Bf5+ {[%clk 0:00:56.4]} 34. Kd2 {[%clk
0:00:53]} 34... g5 {[%clk 0:00:55.8]} 35. a3 {[%clk 0:00:51.1]} 35... Bg6 {[%clk
0:00:51.5]} 36. Bb3 {[%clk 0:00:51.4]} 36... h5 {[%clk 0:00:51.4]} 37. Bc2
{[%clk 0:00:51.1]} 37... Bf7 {[%clk 0:00:48.9]} 38. Bd3 {[%clk 0:00:49.4]} 38...
Kd5 {[%clk 0:00:45.8]} 39. Bc2 {[%clk 0:00:44.2]} 39... Ke5 {[%clk 0:00:44.2]}
40. b4 {[%clk 0:00:34.2]} 40... axb4 {[%clk 0:00:43.1]} 41. axb4 {[%clk
0:00:35.1]} 41... h4 {[%clk 0:00:35.1]} 42. gxh4 {[%clk 0:00:34.5]} 42... gxh4
{[%clk 0:00:36]} 43. b5 {[%clk 0:00:35]} 43... Kd6 {[%clk 0:00:22.2]} 44. Be4
{[%clk 0:00:28.5]} 44... Kc5 {[%clk 0:00:21.3]} 45. Bc6 {[%clk 0:00:27.4]} 45...
Bc4 {[%clk 0:00:20.9]} 46. Bd7 {[%clk 0:00:15.8]} 46... Bxb5 {[%clk 0:00:20.7]}
47. Be6 {[%clk 0:00:16]} 47... Kd6 {[%clk 0:00:18.8]} 48. Bf5 {[%clk 0:00:15.6]}
48... Ke5 {[%clk 0:00:19.3]} 49. Bc8 {[%clk 0:00:14.8]} 49... Kf4 {[%clk
0:00:19.4]} 50. Bh3 {[%clk 0:00:13.8]} 50... Kg3 {[%clk 0:00:19.6]} 51. Ke1
{[%clk 0:00:13.8]} 51... d3 {[%clk 0:00:19.2]} 52. Kd2 {[%clk 0:00:13.3]} 52...
Kf2 {[%clk 0:00:18.6]} 53. f4 {[%clk 0:00:12.8]} 53... Ba6 {[%clk 0:00:17.7]}
0-1

[Event "*** Titled Tuesday Blitz"]
[Site "Chess.com"]
[Date "2020.05.26"]
[Round "7"]
[White "Arjun2002"]
[Black "Alexander_Moskalenko"]
[Result "1/2-1/2"]
[WhiteElo "2668"]
[BlackElo "2792"]
[TimeControl "180+1"]
[EndTime "11:21:45 PDT"]
[Termination "Game drawn by repetition"]

1. e4 {[%clk 0:03:00.9]} 1... e6 {[%clk 0:03:00.9]} 2. d4 {[%clk 0:03:00.5]}
2... d5 {[%clk 0:03:01.8]} 3. Nc3 {[%clk 0:03:00]} 3... Nf6 {[%clk 0:03:01.4]}
4. Bg5 {[%clk 0:02:59.4]} 4... dxe4 {[%clk 0:03:01.4]} 5. Nxe4 {[%clk
0:02:59.1]} 5... Be7 {[%clk 0:03:02]} 6. Bxf6 {[%clk 0:02:59.1]} 6... gxf6
{[%clk 0:03:02.9]} 7. Nc3 {[%clk 0:02:58]} 7... a6 {[%clk 0:03:01.5]} 8. g3
{[%clk 0:02:58]} 8... Nd7 {[%clk 0:02:18.9]} 9. Bg2 {[%clk 0:02:56.2]} 9... c6
{[%clk 0:02:19.1]} 10. Nf3 {[%clk 0:02:43.7]} 10... Qb6 {[%clk 0:02:18.5]} 11.
Rb1 {[%clk 0:02:28.2]} 11... Qc7 {[%clk 0:02:14.1]} 12. O-O {[%clk 0:02:27.9]}
12... h5 {[%clk 0:02:11.9]} 13. Qe2 {[%clk 0:02:24.2]} 13... b6 {[%clk
0:02:07.2]} 14. Rfe1 {[%clk 0:02:13.5]} 14... Bb7 {[%clk 0:01:56.7]} 15. Nh4
{[%clk 0:02:10.3]} 15... O-O-O {[%clk 0:01:53.2]} 16. d5 {[%clk 0:01:59]} 16...
Ne5 {[%clk 0:01:48.2]} 17. dxc6 {[%clk 0:01:53.8]} 17... Nxc6 {[%clk 0:01:45.4]}
18. Rbd1 {[%clk 0:01:39.7]} 18... f5 {[%clk 0:01:43]} 19. Rxd8+ {[%clk
0:01:35.7]} 19... Bxd8 {[%clk 0:01:43.9]} 20. Nf3 {[%clk 0:01:35]} 20... h4
{[%clk 0:01:43.5]} 21. Ne5 {[%clk 0:01:27.9]} 21... hxg3 {[%clk 0:01:41.6]} 22.
hxg3 {[%clk 0:01:26.9]} 22... Nxe5 {[%clk 0:01:34.3]} 23. Qxe5 {[%clk
0:01:20.6]} 23... Qxe5 {[%clk 0:01:34.2]} 24. Rxe5 {[%clk 0:01:20.6]} 24... Bf6
{[%clk 0:01:33.1]} 25. Re3 {[%clk 0:01:20.7]} 25... Rg8 {[%clk 0:01:21.3]} 26.
Ne2 {[%clk 0:01:11.3]} 26... b5 {[%clk 0:01:06.1]} 27. c3 {[%clk 0:01:09.1]}
27... Rd8 {[%clk 0:01:02.4]} 28. Nf4 {[%clk 0:00:47.7]} 28... Rd1+ {[%clk
0:00:54]} 29. Kh2 {[%clk 0:00:47.8]} 29... Rd2 {[%clk 0:00:54.3]} 30. Re2 {[%clk
0:00:46.4]} 30... Rd1 {[%clk 0:00:54.3]} 31. Bxb7+ {[%clk 0:00:28.9]} 31... Kxb7
{[%clk 0:00:55.2]} 32. Kg2 {[%clk 0:00:29.4]} 32... Kc6 {[%clk 0:00:49.2]} 33.
Kf3 {[%clk 0:00:26.9]} 33... a5 {[%clk 0:00:47.1]} 34. Rc2 {[%clk 0:00:24.8]}
34... Bg5 {[%clk 0:00:42.5]} 35. Ke2 {[%clk 0:00:23.9]} 35... Ra1 {[%clk
0:00:41.8]} 36. Nd3 {[%clk 0:00:20.4]} 36... f6 {[%clk 0:00:36.8]} 37. b3 {[%clk
0:00:20.1]} 37... e5 {[%clk 0:00:24.8]} 38. c4 {[%clk 0:00:18]} 38... b4 {[%clk
0:00:24.3]} 39. f4 {[%clk 0:00:17.6]} 39... e4 {[%clk 0:00:24.4]} 40. fxg5
{[%clk 0:00:14.5]} 40... exd3+ {[%clk 0:00:24.1]} 41. Kxd3 {[%clk 0:00:14.9]}
41... fxg5 {[%clk 0:00:25]} 42. Rf2 {[%clk 0:00:15.2]} 42... Rd1+ {[%clk
0:00:11.2]} 43. Kc2 {[%clk 0:00:14]} 43... Rg1 {[%clk 0:00:09.3]} 44. Rxf5
{[%clk 0:00:13.6]} 44... Rg2+ {[%clk 0:00:08.5]} 45. Kb1 {[%clk 0:00:13.2]}
45... Rg1+ {[%clk 0:00:08.9]} 46. Kc2 {[%clk 0:00:13.1]} 46... Rg2+ {[%clk
0:00:09.2]} 47. Kb1 {[%clk 0:00:12.5]} 47... Rg1+ {[%clk 0:00:03.1]} 48. Kc2
{[%clk 0:00:12.1]} 1/2-1/2

[Event "*** Titled Tuesday Blitz"]
[Site "Chess.com"]
[Date "2020.05.26"]
[Round "7"]
[White "AnthonyWirig"]
[Black "Anna_ChessMate"]
[Result "0-1"]
[WhiteElo "2680"]
[BlackElo "2542"]
[TimeControl "180+1"]
[EndTime "11:21:49 PDT"]
[Termination "Anna_ChessMate won on time"]

1. d4 {[%clk 0:03:00.9]} 1... d5 {[%clk 0:02:53.7]} 2. Nf3 {[%clk 0:02:58.4]}
2... Nf6 {[%clk 0:02:53.9]} 3. c4 {[%clk 0:02:57.4]} 3... c6 {[%clk 0:02:53.8]}
4. Qc2 {[%clk 0:02:56.3]} 4... dxc4 {[%clk 0:02:53.5]} 5. e4 {[%clk 0:02:56.2]}
5... Bg4 {[%clk 0:02:47.9]} 6. Nbd2 {[%clk 0:02:50.5]} 6... e6 {[%clk
0:02:45.1]} 7. Bxc4 {[%clk 0:02:41.8]} 7... Nbd7 {[%clk 0:02:44.4]} 8. O-O
{[%clk 0:02:41]} 8... Be7 {[%clk 0:02:43.5]} 9. h3 {[%clk 0:02:39]} 9... Bh5
{[%clk 0:02:43.3]} 10. Re1 {[%clk 0:02:35.3]} 10... O-O {[%clk 0:02:42.3]} 11.
b3 {[%clk 0:01:47.2]} 11... c5 {[%clk 0:02:33.7]} 12. Bb2 {[%clk 0:01:44.1]}
12... Rc8 {[%clk 0:02:32.9]} 13. a4 {[%clk 0:01:42]} 13... cxd4 {[%clk
0:02:32.3]} 14. Bxd4 {[%clk 0:01:36.2]} 14... Nb6 {[%clk 0:02:29.2]} 15. Qb2
{[%clk 0:01:23.4]} 15... Nxc4 {[%clk 0:02:27.6]} 16. bxc4 {[%clk 0:01:24.3]}
16... Bxf3 {[%clk 0:02:22.5]} 17. Nxf3 {[%clk 0:01:19.2]} 17... Rxc4 {[%clk
0:02:22.1]} 18. Red1 {[%clk 0:01:07.5]} 18... Qc8 {[%clk 0:02:17.9]} 19. e5
{[%clk 0:01:03.9]} 19... Nd5 {[%clk 0:02:12.1]} 20. Bxa7 {[%clk 0:01:00.6]}
20... Rc2 {[%clk 0:01:59.7]} 21. Qd4 {[%clk 0:00:45.2]} 21... Nc3 {[%clk
0:01:59.2]} 22. Qg4 {[%clk 0:00:28.2]} 22... Nxd1 {[%clk 0:01:56]} 23. Rxd1
{[%clk 0:00:29.1]} 23... Rc1 {[%clk 0:01:53]} 24. Rxc1 {[%clk 0:00:29.3]} 24...
Qxc1+ {[%clk 0:01:53.9]} 25. Kh2 {[%clk 0:00:30.2]} 25... Bc5 {[%clk 0:01:47.4]}
26. Bxc5 {[%clk 0:00:26.5]} 26... Qxc5 {[%clk 0:01:48.3]} 27. Kg3 {[%clk
0:00:25.4]} 27... g6 {[%clk 0:01:46.2]} 28. Qf4 {[%clk 0:00:23.2]} 28... Qc7
{[%clk 0:01:25.7]} 29. h4 {[%clk 0:00:21.8]} 29... f6 {[%clk 0:01:18.5]} 30. Qe4
{[%clk 0:00:16.7]} 30... f5 {[%clk 0:01:11.9]} 31. Qf4 {[%clk 0:00:16.2]} 31...
Kg7 {[%clk 0:01:05.7]} 32. Kh2 {[%clk 0:00:16.2]} 32... h6 {[%clk 0:01:05.3]}
33. Qb4 {[%clk 0:00:11.2]} 33... Rd8 {[%clk 0:01:03.1]} 34. Qf4 {[%clk
0:00:06.2]} 34... Rd5 {[%clk 0:01:03.2]} 35. Kg1 {[%clk 0:00:05.3]} 35... Qc2
{[%clk 0:00:57.1]} 36. Qb4 {[%clk 0:00:03.9]} 36... Qc7 {[%clk 0:00:51.6]} 37.
Qf4 {[%clk 0:00:03.5]} 37... Rd3 {[%clk 0:00:36.5]} 38. Kh2 {[%clk 0:00:03.8]}
38... Rc3 {[%clk 0:00:32]} 39. Qd4 {[%clk 0:00:02.6]} 39... Rc4 {[%clk
0:00:31.4]} 40. Qd1 {[%clk 0:00:02.1]} 40... g5 {[%clk 0:00:28.2]} 41. hxg5
{[%clk 0:00:01.6]} 41... hxg5 {[%clk 0:00:29.1]} 42. Qd2 {[%clk 0:00:02.2]}
42... g4 {[%clk 0:00:21.6]} 43. Ng5 {[%clk 0:00:01.9]} 43... Qxe5+ {[%clk
0:00:20.5]} 44. g3 {[%clk 0:00:02.8]} 44... Kg6 {[%clk 0:00:15.7]} 45. Qd8
{[%clk 0:00:03.4]} 45... Rc7 {[%clk 0:00:11.9]} 46. Qg8+ {[%clk 0:00:01.7]}
46... Rg7 {[%clk 0:00:11.8]} 47. Qd8 {[%clk 0:00:01.7]} 47... Qf6 {[%clk
0:00:11]} 48. Qxf6+ {[%clk 0:00:01.2]} 48... Kxf6 {[%clk 0:00:11.9]} 0-1

[Event "*** Titled Tuesday Blitz"]
[Site "Chess.com"]
[Date "2020.05.26"]
[Round "7"]
[White "Pavel_Mir"]
[Black "atwalcb"]
[Result "1-0"]
[WhiteElo "2236"]
[BlackElo "2376"]
[TimeControl "180+1"]
[EndTime "11:21:49 PDT"]
[Termination "Pavel_Mir won by resignation"]

1. e4 {[%clk 0:03:00.9]} 1... d6 {[%clk 0:03:00.9]} 2. d4 {[%clk 0:03:00.5]}
2... Nf6 {[%clk 0:02:57.8]} 3. Nc3 {[%clk 0:03:00.5]} 3... Nbd7 {[%clk
0:02:57.4]} 4. f4 {[%clk 0:03:00.1]} 4... e5 {[%clk 0:02:56]} 5. Nf3 {[%clk
0:03:00.7]} 5... exd4 {[%clk 0:02:54.9]} 6. Qxd4 {[%clk 0:03:01.2]} 6... c6
{[%clk 0:02:54.1]} 7. Bc4 {[%clk 0:02:59.6]} 7... d5 {[%clk 0:02:40]} 8. exd5
{[%clk 0:02:52.5]} 8... Bc5 {[%clk 0:02:40]} 9. Qd3 {[%clk 0:02:46.5]} 9... O-O
{[%clk 0:02:32]} 10. dxc6 {[%clk 0:02:40.2]} 10... bxc6 {[%clk 0:02:32.9]} 11.
Ne5 {[%clk 0:02:04.8]} 11... Nxe5 {[%clk 0:01:57.4]} 12. fxe5 {[%clk 0:02:04.3]}
12... Qe7 {[%clk 0:01:52.6]} 13. Bf4 {[%clk 0:01:59.4]} 13... Ng4 {[%clk
0:01:47.6]} 14. O-O-O {[%clk 0:01:51.4]} 14... Nf2 {[%clk 0:01:45.2]} 15. Qg3
{[%clk 0:01:45.9]} 15... Nxh1 {[%clk 0:01:37]} 16. Rxh1 {[%clk 0:01:45.9]} 16...
Bf5 {[%clk 0:01:30.9]} 17. Bg5 {[%clk 0:01:36.6]} 17... Qb7 {[%clk 0:01:23.2]}
18. Qf3 {[%clk 0:01:09]} 18... Bg6 {[%clk 0:01:13]} 19. h4 {[%clk 0:01:08.9]}
19... Bd4 {[%clk 0:01:06.3]} 20. h5 {[%clk 0:01:04.8]} 20... Bxc3 {[%clk
0:01:05.3]} 21. bxc3 {[%clk 0:00:56.1]} 21... Bxc2 {[%clk 0:00:30]} 22. Kxc2
{[%clk 0:00:53.4]} 22... Qc7 {[%clk 0:00:30.4]} 23. Qe4 {[%clk 0:00:47.4]} 23...
h6 {[%clk 0:00:29.5]} 24. Bd3 {[%clk 0:00:40.8]} 24... f5 {[%clk 0:00:24.7]} 25.
exf6 {[%clk 0:00:38.3]} 25... gxf6 {[%clk 0:00:17.6]} 26. Bxh6 {[%clk
0:00:37.5]} 26... Rfe8 {[%clk 0:00:13.6]} 27. Qg6+ {[%clk 0:00:34]} 27... Kh8
{[%clk 0:00:14]} 28. Qxf6+ {[%clk 0:00:33.6]} 28... Kg8 {[%clk 0:00:14.5]} 29.
Bc4+ {[%clk 0:00:32.9]} 29... Kh7 {[%clk 0:00:15]} 30. Qg6+ {[%clk 0:00:19.6]}
30... Kh8 {[%clk 0:00:15]} 31. Bg5 {[%clk 0:00:19.6]} 31... Rf8 {[%clk
0:00:12.4]} 32. Bf6+ {[%clk 0:00:19.4]} 32... Rxf6 {[%clk 0:00:12.9]} 33. Qxf6+
{[%clk 0:00:19.6]} 33... Kh7 {[%clk 0:00:13.5]} 34. h6 {[%clk 0:00:20]} 34...
Rd8 {[%clk 0:00:11.2]} 35. Qg7+ {[%clk 0:00:18.7]} 35... Qxg7 {[%clk 0:00:10.9]}
36. hxg7+ {[%clk 0:00:19.2]} 36... Kxg7 {[%clk 0:00:11.8]} 37. Bd3 {[%clk
0:00:19.6]} 37... Kf6 {[%clk 0:00:11.6]} 38. Rh6+ {[%clk 0:00:19.7]} 38... Ke5
{[%clk 0:00:11]} 39. Rxc6 {[%clk 0:00:20.3]} 39... Rg8 {[%clk 0:00:11.8]} 40.
Rg6 {[%clk 0:00:19.8]} 40... Rf8 {[%clk 0:00:11.9]} 41. g4 {[%clk 0:00:19.6]}
41... Rf2+ {[%clk 0:00:12]} 42. Kb3 {[%clk 0:00:19.9]} 42... Rd2 {[%clk
0:00:12.5]} 43. Bc4 {[%clk 0:00:20]} 43... Rg2 {[%clk 0:00:12.8]} 44. Rg8 {[%clk
0:00:19.7]} 44... a5 {[%clk 0:00:12.4]} 45. a4 {[%clk 0:00:19.7]} 45... Rg3
{[%clk 0:00:12.6]} 46. g5 {[%clk 0:00:19.4]} 46... Kf5 {[%clk 0:00:12.7]} 47. g6
{[%clk 0:00:19.2]} 47... Kf6 {[%clk 0:00:12.9]} 48. g7 {[%clk 0:00:18.9]} 48...
Ke7 {[%clk 0:00:13.4]} 49. Ra8 {[%clk 0:00:16.2]} 49... Rxg7 {[%clk 0:00:12.8]}
50. Ra7+ {[%clk 0:00:16.4]} 50... Kf6 {[%clk 0:00:13.7]} 51. Rxg7 {[%clk
0:00:16.4]} 51... Kxg7 {[%clk 0:00:14.6]} 52. Bd5 {[%clk 0:00:16.8]} 52... Kf6
{[%clk 0:00:15.5]} 53. Kc4 {[%clk 0:00:17.4]} 53... Ke7 {[%clk 0:00:16.4]} 54.
Kb5 {[%clk 0:00:17.6]} 54... Kd6 {[%clk 0:00:17.3]} 55. c4 {[%clk 0:00:18]}
55... Kc7 {[%clk 0:00:17.2]} 56. Kxa5 {[%clk 0:00:18.3]} 56... Kb8 {[%clk
0:00:18.1]} 57. Kb6 {[%clk 0:00:18.5]} 57... Kc8 {[%clk 0:00:18.4]} 58. a5
{[%clk 0:00:19.2]} 58... Kb8 {[%clk 0:00:18.9]} 59. a6 {[%clk 0:00:19.3]} 1-0

[Event "*** Titled Tuesday Blitz"]
[Site "Chess.com"]
[Date "2020.05.26"]
[Round "7"]
[White "Feegus"]
[Black "chenrip"]
[Result "1/2-1/2"]
[WhiteElo "2459"]
[BlackElo "2298"]
[TimeControl "180+1"]
[EndTime "11:21:50 PDT"]
[Termination "Game drawn by repetition"]

1. Nf3 {[%clk 0:02:10]} 1... Nf6 {[%clk 0:02:57.9]} 2. g3 {[%clk 0:02:10.9]}
2... b5 {[%clk 0:02:57.5]} 3. Bg2 {[%clk 0:02:11.8]} 3... Bb7 {[%clk 0:02:58]}
4. O-O {[%clk 0:02:12.7]} 4... e6 {[%clk 0:02:58.3]} 5. a4 {[%clk 0:02:13]} 5...
b4 {[%clk 0:02:58.1]} 6. d4 {[%clk 0:02:11.2]} 6... a5 {[%clk 0:02:57.6]} 7. c4
{[%clk 0:02:10.5]} 7... d5 {[%clk 0:02:55.7]} 8. Ne5 {[%clk 0:02:07.8]} 8...
Nbd7 {[%clk 0:02:53.4]} 9. b3 {[%clk 0:02:05.7]} 9... Be7 {[%clk 0:02:49.5]} 10.
Bb2 {[%clk 0:02:05.1]} 10... O-O {[%clk 0:02:49.1]} 11. Nd2 {[%clk 0:02:04.9]}
11... Ra6 {[%clk 0:02:43.5]} 12. Qc2 {[%clk 0:02:03.7]} 12... Qa8 {[%clk
0:02:38.9]} 13. Rac1 {[%clk 0:01:56.3]} 13... dxc4 {[%clk 0:02:27]} 14. Bxb7
{[%clk 0:01:55.4]} 14... Qxb7 {[%clk 0:02:27.1]} 15. Qxc4 {[%clk 0:01:55.1]}
15... Nxe5 {[%clk 0:02:26.7]} 16. dxe5 {[%clk 0:01:54.5]} 16... Nd5 {[%clk
0:02:11.8]} 17. e4 {[%clk 0:01:54.1]} 17... Nc3 {[%clk 0:01:55.8]} 18. Bxc3
{[%clk 0:01:51.8]} 18... bxc3 {[%clk 0:01:56]} 19. Rxc3 {[%clk 0:01:50.9]} 19...
Bb4 {[%clk 0:01:52.8]} 20. Rc2 {[%clk 0:01:32.8]} 20... Bxd2 {[%clk 0:01:39.6]}
21. Rxd2 {[%clk 0:01:23.3]} 21... Rc6 {[%clk 0:01:40.1]} 22. Qd3 {[%clk
0:01:21]} 22... h6 {[%clk 0:01:33.2]} 23. Kg2 {[%clk 0:01:18.9]} 23... Rb8
{[%clk 0:01:32.9]} 24. Rb1 {[%clk 0:00:55]} 24... Qb4 {[%clk 0:01:32.5]} 25. Rc2
{[%clk 0:00:51.1]} 25... Rbb6 {[%clk 0:00:43.6]} 26. Rxc6 {[%clk 0:00:44]} 26...
Rxc6 {[%clk 0:00:43.5]} 27. Rd1 {[%clk 0:00:33.4]} 27... Rc3 {[%clk 0:00:39.5]}
28. Qe2 {[%clk 0:00:20.4]} 28... Rxb3 {[%clk 0:00:19.6]} 29. Rd8+ {[%clk
0:00:20.1]} 29... Kh7 {[%clk 0:00:20.1]} 30. Rd7 {[%clk 0:00:20.6]} 30... Qc3
{[%clk 0:00:16.6]} 31. Rxf7 {[%clk 0:00:18.9]} 31... Qxe5 {[%clk 0:00:17.1]} 32.
Qg4 {[%clk 0:00:17.8]} 32... Rb4 {[%clk 0:00:14.9]} 33. h4 {[%clk 0:00:11.4]}
33... Rxe4 {[%clk 0:00:14.5]} 34. Rxg7+ {[%clk 0:00:11.2]} 34... Qxg7 {[%clk
0:00:13.8]} 35. Qxe4+ {[%clk 0:00:11.7]} 35... Qg6 {[%clk 0:00:14.1]} 36. Qc6
{[%clk 0:00:11.9]} 36... Qf7 {[%clk 0:00:12.9]} 37. Qc2+ {[%clk 0:00:12]} 37...
Kg7 {[%clk 0:00:12.9]} 38. f4 {[%clk 0:00:12.3]} 38... Qd7 {[%clk 0:00:12.8]}
39. Qc3+ {[%clk 0:00:12.4]} 39... Kf7 {[%clk 0:00:13.2]} 40. h5 {[%clk
0:00:11.5]} 40... Qxa4 {[%clk 0:00:13.2]} 41. Qxc7+ {[%clk 0:00:11.1]} 41... Kf6
{[%clk 0:00:12.4]} 42. Qe5+ {[%clk 0:00:10.4]} 42... Kf7 {[%clk 0:00:12.9]} 43.
Qh8 {[%clk 0:00:09.7]} 43... Qc2+ {[%clk 0:00:12]} 44. Kh3 {[%clk 0:00:09.8]}
44... Qf5+ {[%clk 0:00:12.5]} 45. Kh2 {[%clk 0:00:08.3]} 45... Qxh5+ {[%clk
0:00:12.7]} 46. Kg2 {[%clk 0:00:08.1]} 46... Qe2+ {[%clk 0:00:13.1]} 47. Kh3
{[%clk 0:00:08.3]} 47... Qh5+ {[%clk 0:00:13.6]} 48. Kg2 {[%clk 0:00:08.4]}
48... Qe2+ {[%clk 0:00:14]} 49. Kh3 {[%clk 0:00:08.8]} 49... Qh5+ {[%clk
0:00:11.9]} 50. Kg2 {[%clk 0:00:08.9]} 1/2-1/2

[Event "*** Titled Tuesday Blitz"]
[Site "Chess.com"]
[Date "2020.05.26"]
[Round "7"]
[White "barbara25"]
[Black "ZarinaShafigullina"]
[Result "0-1"]
[WhiteElo "2197"]
[BlackElo "2344"]
[TimeControl "180+1"]
[EndTime "11:21:50 PDT"]
[Termination "ZarinaShafigullina won by resignation"]

1. e4 {[%clk 0:03:00.9]} 1... c5 {[%clk 0:02:59.7]} 2. Nf3 {[%clk 0:02:59]} 2...
Nc6 {[%clk 0:03:00.2]} 3. Bb5 {[%clk 0:02:58.2]} 3... g6 {[%clk 0:02:59.6]} 4.
O-O {[%clk 0:02:56.9]} 4... Bg7 {[%clk 0:03:00]} 5. c3 {[%clk 0:02:57.2]} 5...
Nf6 {[%clk 0:02:58.7]} 6. Re1 {[%clk 0:02:56.3]} 6... O-O {[%clk 0:02:56.2]} 7.
d4 {[%clk 0:02:56.3]} 7... d5 {[%clk 0:02:55.2]} 8. e5 {[%clk 0:02:56]} 8... Ne4
{[%clk 0:02:55.5]} 9. Bd3 {[%clk 0:02:50.7]} 9... cxd4 {[%clk 0:02:46.5]} 10.
cxd4 {[%clk 0:02:50.3]} 10... Bf5 {[%clk 0:02:46.2]} 11. Nc3 {[%clk 0:02:47.9]}
11... Nxc3 {[%clk 0:02:43]} 12. bxc3 {[%clk 0:02:47.9]} 12... Bxd3 {[%clk
0:02:40.8]} 13. Qxd3 {[%clk 0:02:48.8]} 13... f6 {[%clk 0:02:41.2]} 14. e6
{[%clk 0:02:32.3]} 14... Rc8 {[%clk 0:02:35.8]} 15. h4 {[%clk 0:02:31.6]} 15...
Na5 {[%clk 0:02:30.7]} 16. h5 {[%clk 0:02:31.2]} 16... Qe8 {[%clk 0:02:30.5]}
17. h6 {[%clk 0:02:29]} 17... Bh8 {[%clk 0:02:29.6]} 18. Rb1 {[%clk 0:02:27.2]}
18... b6 {[%clk 0:02:28.2]} 19. Nd2 {[%clk 0:02:20.2]} 19... Qc6 {[%clk
0:02:25.4]} 20. Bb2 {[%clk 0:02:19.3]} 20... Rfd8 {[%clk 0:02:19.4]} 21. Re3
{[%clk 0:02:18.1]} 21... Rd6 {[%clk 0:02:14.3]} 22. Rbe1 {[%clk 0:02:12.1]}
22... Nc4 {[%clk 0:02:13.7]} 23. Nxc4 {[%clk 0:02:03.4]} 23... dxc4 {[%clk
0:02:13.2]} 24. Qb1 {[%clk 0:02:01.3]} 24... Rd5 {[%clk 0:02:12.9]} 25. Rg3
{[%clk 0:02:00]} 25... f5 {[%clk 0:02:07.9]} 26. Ba3 {[%clk 0:01:53.2]} 26...
Bf6 {[%clk 0:02:07.2]} 27. Qc2 {[%clk 0:01:37.3]} 27... a5 {[%clk 0:02:04.4]}
28. Bc1 {[%clk 0:01:30.7]} 28... Bh4 {[%clk 0:01:53.7]} 29. Rh3 {[%clk
0:01:24.6]} 29... Bf6 {[%clk 0:01:53.6]} 30. Bf4 {[%clk 0:01:15.5]} 30... b5
{[%clk 0:01:50.8]} 31. Rhe3 {[%clk 0:01:11.5]} 31... b4 {[%clk 0:01:49.8]} 32.
Be5 {[%clk 0:01:10]} 32... Bxe5 {[%clk 0:01:40.3]} 33. Rxe5 {[%clk 0:01:09.7]}
33... Rcd8 {[%clk 0:01:38.4]} 34. f4 {[%clk 0:00:58.7]} 34... Qb6 {[%clk
0:01:31.2]} 35. Rxd5 {[%clk 0:00:53.2]} 35... Rxd5 {[%clk 0:01:29.4]} 36. Rb1
{[%clk 0:00:52.9]} 36... Rb5 {[%clk 0:01:16.2]} 37. Kh2 {[%clk 0:00:50.9]} 37...
Qd6 {[%clk 0:01:06.5]} 38. cxb4 {[%clk 0:00:47.9]} 38... Qxf4+ {[%clk
0:01:05.5]} 39. g3 {[%clk 0:00:45.4]} 39... Qxh6+ {[%clk 0:00:26.4]} 40. Kg2
{[%clk 0:00:44.9]} 40... Rxb4 {[%clk 0:00:15.1]} 41. Rxb4 {[%clk 0:00:43.8]}
41... axb4 {[%clk 0:00:15.4]} 42. Qxc4 {[%clk 0:00:43.7]} 42... Qd2+ {[%clk
0:00:14.7]} 43. Kh3 {[%clk 0:00:42.4]} 43... Qh6+ {[%clk 0:00:14.2]} 44. Kg2
{[%clk 0:00:41.6]} 44... Qd2+ {[%clk 0:00:14.3]} 45. Kh3 {[%clk 0:00:41.4]}
45... g5 {[%clk 0:00:14.7]} 46. g4 {[%clk 0:00:27.4]} 46... Qe3+ {[%clk
0:00:13.2]} 47. Kg2 {[%clk 0:00:26.9]} 47... fxg4 {[%clk 0:00:11.9]} 48. Qc8+
{[%clk 0:00:24.2]} 48... Kg7 {[%clk 0:00:11.8]} 49. Qd7 {[%clk 0:00:22.2]} 49...
Qf3+ {[%clk 0:00:11.7]} 50. Kg1 {[%clk 0:00:21.3]} 50... Qf6 {[%clk 0:00:11.7]}
51. d5 {[%clk 0:00:19.3]} 51... h5 {[%clk 0:00:11.3]} 52. d6 {[%clk 0:00:19]}
52... Qd4+ {[%clk 0:00:11.5]} 53. Kh2 {[%clk 0:00:17.2]} 53... Qxd6+ {[%clk
0:00:11.7]} 54. Qxd6 {[%clk 0:00:16.5]} 54... exd6 {[%clk 0:00:12.3]} 0-1